[Event "Late-Titled-Tuesday-Blitz-November-28-2023"]
[Site "Chess.com"]
[Date "2023.11.28"]
[Round "6"]
[White "zverr1"]
[Black "SergioMoralesG"]
[Result "0-1"]
[WhiteElo "2515"]
[BlackElo "2375"]
[TimeControl "180+1"]
[EndTime "15:04:22 PST"]
[Termination "SergioMoralesG won by checkmate"]

1. e4 {[%clk 0:02:59.9]} 1... c5 {[%clk 0:02:58.4]} 2. Nf3 {[%clk 0:02:59.4]}
2... e6 {[%clk 0:02:58.6]} 3. b3 {[%clk 0:02:59.3]} 3... a6 {[%clk 0:02:55]} 4.
Bb2 {[%clk 0:02:58.8]} 4... Nc6 {[%clk 0:02:55.4]} 5. d4 {[%clk 0:02:55]} 5...
cxd4 {[%clk 0:02:56.3]} 6. Nxd4 {[%clk 0:02:55.9]} 6... Qf6 {[%clk 0:02:56.6]}
7. c3 {[%clk 0:02:51]} 7... Bc5 {[%clk 0:02:54.7]} 8. Qd2 {[%clk 0:02:39.3]}
8... e5 {[%clk 0:02:40.4]} 9. Nf3 {[%clk 0:02:13.4]} 9... Qg6 {[%clk 0:02:40.3]}
10. Qc2 {[%clk 0:02:03]} 10... Nf6 {[%clk 0:02:38.8]} 11. Nbd2 {[%clk
0:01:59.5]} 11... Ng4 {[%clk 0:02:38.7]} 12. Nc4 {[%clk 0:01:22.7]} 12... Bxf2+
{[%clk 0:02:23.7]} 13. Qxf2 {[%clk 0:01:22.3]} 13... Nxf2 {[%clk 0:02:21.6]} 14.
Kxf2 {[%clk 0:01:23.2]} 14... O-O {[%clk 0:01:56.2]} 15. Bd3 {[%clk 0:01:02.4]}
15... d5 {[%clk 0:01:50.4]} 16. Nb6 {[%clk 0:00:55]} 16... dxe4 {[%clk
0:01:47.6]} 17. Bxe4 {[%clk 0:00:54.6]} 17... Qxe4 {[%clk 0:01:46.6]} 18. Rhe1
{[%clk 0:00:55.4]} 18... Qf4 {[%clk 0:01:37.9]} 19. Nxa8 {[%clk 0:00:48]} 19...
e4 {[%clk 0:01:31.8]} 20. Bc1 {[%clk 0:00:45.9]} 20... Qf5 {[%clk 0:01:28.5]}
21. Ba3 {[%clk 0:00:38.5]} 21... exf3 {[%clk 0:01:19.5]} 22. Bxf8 {[%clk
0:00:36.4]} 22... fxg2+ {[%clk 0:01:19.4]} 23. Kxg2 {[%clk 0:00:35.3]} 23...
Kxf8 {[%clk 0:01:06.9]} 24. Nb6 {[%clk 0:00:30.9]} 24... Qc2+ {[%clk 0:01:03.7]}
25. Kg3 {[%clk 0:00:15.6]} 25... Qxc3+ {[%clk 0:01:03.2]} 26. Kg2 {[%clk
0:00:13]} 26... Bh3+ {[%clk 0:01:02.6]} 27. Kf2 {[%clk 0:00:12.1]} 27... Qc5+
{[%clk 0:01:00.6]} 28. Kg3 {[%clk 0:00:11.8]} 28... Be6 {[%clk 0:00:43.2]} 29.
Na4 {[%clk 0:00:08.2]} 29... Qg5+ {[%clk 0:00:39.2]} 30. Kf2 {[%clk 0:00:07.4]}
30... Nd4 {[%clk 0:00:38.7]} 31. Rad1 {[%clk 0:00:05.9]} 31... Qf4+ {[%clk
0:00:36.7]} 32. Kg2 {[%clk 0:00:03.4]} 32... Qf3+ {[%clk 0:00:35.4]} 33. Kg1
{[%clk 0:00:04]} 33... Ne2+ {[%clk 0:00:34.6]} 34. Rxe2 {[%clk 0:00:04.6]} 34...
Qxe2 {[%clk 0:00:34.8]} 35. Rb1 {[%clk 0:00:04.2]} 35... Bh3 {[%clk 0:00:33.3]}
36. Rb2 {[%clk 0:00:04]} 36... Qe1# {[%clk 0:00:32.9]} 0-1

[Event "Late-Titled-Tuesday-Blitz-November-28-2023"]
[Site "Chess.com"]
[Date "2023.11.28"]
[Round "6"]
[White "emeli_chess"]
[Black "Likvidator228"]
[Result "0-1"]
[WhiteElo "2367"]
[BlackElo "2559"]
[TimeControl "180+1"]
[EndTime "15:04:24 PST"]
[Termination "Likvidator228 won on time"]

1. d4 {[%clk 0:03:00]} 1... Nf6 {[%clk 0:02:58.3]} 2. c4 {[%clk 0:02:59.8]} 2...
e6 {[%clk 0:02:58.6]} 3. Nc3 {[%clk 0:02:59.4]} 3... d5 {[%clk 0:02:59.1]} 4.
cxd5 {[%clk 0:02:59.1]} 4... exd5 {[%clk 0:02:59.4]} 5. Bg5 {[%clk 0:02:59.2]}
5... c6 {[%clk 0:02:59.4]} 6. Qc2 {[%clk 0:02:58.7]} 6... Be7 {[%clk 0:02:57.8]}
7. e3 {[%clk 0:02:58.7]} 7... O-O {[%clk 0:02:57.7]} 8. Bd3 {[%clk 0:02:58.8]}
8... Nbd7 {[%clk 0:02:57.6]} 9. Nf3 {[%clk 0:02:58.1]} 9... Re8 {[%clk 0:02:58]}
10. O-O {[%clk 0:02:58]} 10... h6 {[%clk 0:02:55.4]} 11. Bh4 {[%clk 0:02:56.2]}
11... Ne4 {[%clk 0:02:55.2]} 12. Bxe4 {[%clk 0:02:52.3]} 12... Bxh4 {[%clk
0:02:51.3]} 13. Bh7+ {[%clk 0:02:52.2]} 13... Kh8 {[%clk 0:02:50.3]} 14. Bd3
{[%clk 0:02:52.2]} 14... Bf6 {[%clk 0:02:48.5]} 15. b4 {[%clk 0:02:51.2]} 15...
a6 {[%clk 0:02:45.2]} 16. a4 {[%clk 0:02:50.3]} 16... Nb6 {[%clk 0:02:43.6]} 17.
b5 {[%clk 0:02:39]} 17... cxb5 {[%clk 0:02:39.9]} 18. axb5 {[%clk 0:02:38.8]}
18... a5 {[%clk 0:02:40.3]} 19. Na4 {[%clk 0:02:28.7]} 19... Nxa4 {[%clk
0:02:39]} 20. Qxa4 {[%clk 0:02:27.9]} 20... b6 {[%clk 0:02:38.5]} 21. Rfc1
{[%clk 0:02:24]} 21... Bg4 {[%clk 0:02:37.7]} 22. Nd2 {[%clk 0:02:23.1]} 22...
Rc8 {[%clk 0:02:34.6]} 23. Rc6 {[%clk 0:02:12]} 23... Bd7 {[%clk 0:02:23]} 24.
Rc2 {[%clk 0:02:10.2]} 24... Rxc2 {[%clk 0:02:18.4]} 25. Qxc2 {[%clk 0:02:09.5]}
25... Qc8 {[%clk 0:02:16.5]} 26. Qb3 {[%clk 0:02:03.6]} 26... Qb7 {[%clk
0:02:12.9]} 27. Nf3 {[%clk 0:01:17.1]} 27... Rc8 {[%clk 0:02:08.8]} 28. Ne5
{[%clk 0:01:15]} 28... Bxe5 {[%clk 0:02:05.5]} 29. dxe5 {[%clk 0:01:15.3]} 29...
Be6 {[%clk 0:02:06]} 30. Qa3 {[%clk 0:01:07.5]} 30... Qc7 {[%clk 0:02:02.8]} 31.
f4 {[%clk 0:01:03.3]} 31... g6 {[%clk 0:02:02.5]} 32. h3 {[%clk 0:00:42.6]}
32... h5 {[%clk 0:02:00.5]} 33. Kh2 {[%clk 0:00:36.8]} 33... h4 {[%clk
0:01:57.1]} 34. Rf1 {[%clk 0:00:31.2]} 34... Qc3 {[%clk 0:01:48.9]} 35. Qxc3
{[%clk 0:00:24.5]} 35... Rxc3 {[%clk 0:01:48.6]} 36. f5 {[%clk 0:00:24.2]} 36...
gxf5 {[%clk 0:01:34.4]} 37. Bxf5 {[%clk 0:00:23.4]} 37... Rxe3 {[%clk
0:01:34.8]} 38. Bxe6 {[%clk 0:00:23.7]} 38... fxe6 {[%clk 0:01:35.5]} 39. Rf8+
{[%clk 0:00:23]} 39... Kg7 {[%clk 0:01:35]} 40. Rb8 {[%clk 0:00:23.1]} 40...
Rxe5 {[%clk 0:01:34]} 41. Rxb6 {[%clk 0:00:22.7]} 41... d4 {[%clk 0:01:28.3]}
42. Rd6 {[%clk 0:00:22.6]} 42... Rxb5 {[%clk 0:01:26]} 43. Rxd4 {[%clk
0:00:21.6]} 43... Rb4 {[%clk 0:01:26.6]} 44. Rd7+ {[%clk 0:00:17.9]} 44... Kf6
{[%clk 0:01:26.3]} 45. Ra7 {[%clk 0:00:17.9]} 45... a4 {[%clk 0:01:26.3]} 46.
Kg1 {[%clk 0:00:17]} 46... e5 {[%clk 0:01:23.9]} 47. Kf2 {[%clk 0:00:16.6]}
47... Kf5 {[%clk 0:01:23]} 48. Ra5 {[%clk 0:00:10.1]} 48... Kf4 {[%clk
0:01:21.5]} 49. Ra8 {[%clk 0:00:05.1]} 49... Rb2+ {[%clk 0:01:21.6]} 50. Kf1
{[%clk 0:00:05]} 50... Ke3 {[%clk 0:01:15.7]} 51. Kg1 {[%clk 0:00:03.3]} 51...
Rb1+ {[%clk 0:01:15.6]} 52. Kh2 {[%clk 0:00:03]} 52... Rb4 {[%clk 0:01:14]} 0-1

[Event "Late-Titled-Tuesday-Blitz-November-28-2023"]
[Site "Chess.com"]
[Date "2023.11.28"]
[Round "6"]
[White "cthake"]
[Black "nitpicker"]
[Result "0-1"]
[WhiteElo "1917"]
[BlackElo "2315"]
[TimeControl "180+1"]
[EndTime "15:04:25 PST"]
[Termination "nitpicker won by resignation"]

1. e4 {[%clk 0:03:00.9]} 1... c5 {[%clk 0:02:59.4]} 2. Nf3 {[%clk 0:02:58.4]}
2... d6 {[%clk 0:02:57.7]} 3. d4 {[%clk 0:02:50.4]} 3... cxd4 {[%clk 0:02:57]}
4. Nxd4 {[%clk 0:02:50.3]} 4... Nf6 {[%clk 0:02:57.2]} 5. Nc3 {[%clk 0:02:50.4]}
5... Nc6 {[%clk 0:02:57.4]} 6. Bg5 {[%clk 0:02:48.5]} 6... Qb6 {[%clk
0:02:56.5]} 7. Nxc6 {[%clk 0:02:46.3]} 7... bxc6 {[%clk 0:02:55.6]} 8. Qd2
{[%clk 0:02:43.8]} 8... Qxb2 {[%clk 0:02:45.6]} 9. Rb1 {[%clk 0:02:41.7]} 9...
Qa3 {[%clk 0:02:45.8]} 10. Bd3 {[%clk 0:02:39.6]} 10... e6 {[%clk 0:02:24.3]}
11. O-O {[%clk 0:02:35.4]} 11... Be7 {[%clk 0:02:23.6]} 12. Kh1 {[%clk
0:02:21.5]} 12... O-O {[%clk 0:02:21.8]} 13. f4 {[%clk 0:02:21.2]} 13... h6
{[%clk 0:02:12.5]} 14. Bh4 {[%clk 0:02:02.9]} 14... Nxe4 {[%clk 0:01:39.4]} 15.
Bxe4 {[%clk 0:02:01]} 15... Bxh4 {[%clk 0:01:36.6]} 16. Bxc6 {[%clk 0:01:59.1]}
16... Ba6 {[%clk 0:01:36.2]} 17. Bxa8 {[%clk 0:01:51.5]} 17... Bxf1 {[%clk
0:01:35]} 18. Rxf1 {[%clk 0:01:47.1]} 18... Rxa8 {[%clk 0:01:32.7]} 19. Nb5
{[%clk 0:01:42.3]} 19... Qa6 {[%clk 0:01:28.4]} 20. c4 {[%clk 0:01:38.8]} 20...
Rd8 {[%clk 0:01:10.8]} 21. f5 {[%clk 0:01:37.8]} 21... d5 {[%clk 0:01:05.6]} 22.
fxe6 {[%clk 0:01:36.7]} 22... fxe6 {[%clk 0:00:56.5]} 23. Qf4 {[%clk 0:01:28.7]}
23... Bf6 {[%clk 0:00:39.9]} 24. Nc7 {[%clk 0:01:14]} 24... Qc6 {[%clk
0:00:35.1]} 25. cxd5 {[%clk 0:01:09.1]} 25... exd5 {[%clk 0:00:32.3]} 26. Rc1
{[%clk 0:01:04.9]} 26... Qd6 {[%clk 0:00:31.8]} 27. Qxd6 {[%clk 0:00:58.7]}
27... Rxd6 {[%clk 0:00:31.2]} 28. Nb5 {[%clk 0:00:58.9]} 28... Ra6 {[%clk
0:00:24.9]} 29. Rc2 {[%clk 0:00:56]} 29... Ra5 {[%clk 0:00:22.1]} 30. Nc7 {[%clk
0:00:49.8]} 30... d4 {[%clk 0:00:22.4]} 31. Kg1 {[%clk 0:00:45.6]} 31... Bg5
{[%clk 0:00:21.4]} 32. Kf2 {[%clk 0:00:44.2]} 32... d3 {[%clk 0:00:21.3]} 33.
Rb2 {[%clk 0:00:33.2]} 33... Re5 {[%clk 0:00:20.8]} 34. h4 {[%clk 0:00:18.4]}
34... d2 {[%clk 0:00:19.3]} 35. Rxd2 {[%clk 0:00:11.2]} 35... Bxd2 {[%clk
0:00:18.6]} 0-1

[Event "Late-Titled-Tuesday-Blitz-November-28-2023"]
[Site "Chess.com"]
[Date "2023.11.28"]
[Round "6"]
[White "mind1mover"]
[Black "Msb2"]
[Result "0-1"]
[WhiteElo "2755"]
[BlackElo "3031"]
[TimeControl "180+1"]
[EndTime "15:04:26 PST"]
[Termination "Msb2 won by resignation"]

1. d4 {[%clk 0:03:00.9]} 1... d5 {[%clk 0:03:00.4]} 2. Nf3 {[%clk 0:03:00.4]}
2... e6 {[%clk 0:03:00.8]} 3. c4 {[%clk 0:02:53.2]} 3... Nf6 {[%clk 0:03:01]} 4.
cxd5 {[%clk 0:02:53]} 4... exd5 {[%clk 0:03:01.9]} 5. Nc3 {[%clk 0:02:53.3]}
5... Bb4 {[%clk 0:03:02.6]} 6. Qa4+ {[%clk 0:02:50]} 6... Nc6 {[%clk 0:03:02.7]}
7. Bg5 {[%clk 0:02:50.6]} 7... h6 {[%clk 0:03:03]} 8. Bxf6 {[%clk 0:02:50.6]}
8... Qxf6 {[%clk 0:03:03.9]} 9. e3 {[%clk 0:02:51.2]} 9... O-O {[%clk
0:03:04.6]} 10. Be2 {[%clk 0:02:51.7]} 10... Be6 {[%clk 0:03:05.2]} 11. O-O
{[%clk 0:02:51.9]} 11... a6 {[%clk 0:03:05.2]} 12. Rfc1 {[%clk 0:02:48.3]} 12...
Bd6 {[%clk 0:03:05.4]} 13. Qd1 {[%clk 0:02:45.6]} 13... Ne7 {[%clk 0:03:02.4]}
14. Na4 {[%clk 0:02:36.1]} 14... b6 {[%clk 0:03:02.5]} 15. Ne1 {[%clk
0:02:14.9]} 15... g5 {[%clk 0:02:54.3]} 16. g3 {[%clk 0:02:02.4]} 16... Qg7
{[%clk 0:02:50.7]} 17. Nd3 {[%clk 0:01:37.3]} 17... f5 {[%clk 0:02:46.4]} 18.
Kh1 {[%clk 0:01:36.3]} 18... Kh8 {[%clk 0:02:44.2]} 19. f4 {[%clk 0:01:33.5]}
19... gxf4 {[%clk 0:02:28.8]} 20. Nxf4 {[%clk 0:01:28.7]} 20... Bf7 {[%clk
0:02:23.7]} 21. Nc3 {[%clk 0:01:16]} 21... c6 {[%clk 0:02:22.5]} 22. Bf3 {[%clk
0:01:09.5]} 22... Rac8 {[%clk 0:02:19.4]} 23. Na4 {[%clk 0:01:07.6]} 23... Rb8
{[%clk 0:02:13.6]} 24. Qe2 {[%clk 0:01:00.4]} 24... a5 {[%clk 0:02:13.7]} 25.
Qf2 {[%clk 0:00:56.5]} 25... Rfc8 {[%clk 0:02:10.2]} 26. Nc3 {[%clk 0:00:54.5]}
26... Ng8 {[%clk 0:02:10]} 27. Rc2 {[%clk 0:00:49.1]} 27... Nf6 {[%clk
0:02:10.4]} 28. Rac1 {[%clk 0:00:49.7]} 28... Ne4 {[%clk 0:02:03.1]} 29. Qg2
{[%clk 0:00:37.5]} 29... Rg8 {[%clk 0:01:37.3]} 30. Qh3 {[%clk 0:00:16.5]} 30...
Ng5 {[%clk 0:01:31.7]} 31. Qf1 {[%clk 0:00:13.3]} 31... Rbe8 {[%clk 0:01:32.3]}
32. Re2 {[%clk 0:00:03.1]} 32... Bxf4 {[%clk 0:01:13.6]} 33. exf4 {[%clk
0:00:03.5]} 33... Nxf3 {[%clk 0:01:13.5]} 34. Qxf3 {[%clk 0:00:02.9]} 34... Qxd4
{[%clk 0:01:14.2]} 35. Rce1 {[%clk 0:00:01.8]} 35... Rxe2 {[%clk 0:01:14.3]} 36.
Qxe2 {[%clk 0:00:02.4]} 36... Re8 {[%clk 0:01:14]} 37. Qf1 {[%clk 0:00:02.6]}
37... Rxe1 {[%clk 0:01:12.6]} 38. Qxe1 {[%clk 0:00:03.5]} 38... Kg7 {[%clk
0:01:12.7]} 39. Kg2 {[%clk 0:00:03.2]} 39... Qf6 {[%clk 0:01:12.8]} 40. Qe5
{[%clk 0:00:01.3]} 40... d4 {[%clk 0:01:11]} 41. Qxf6+ {[%clk 0:00:01.2]} 41...
Kxf6 {[%clk 0:01:11.9]} 42. Na4 {[%clk 0:00:01.8]} 42... b5 {[%clk 0:01:10]} 43.
Nc5 {[%clk 0:00:02.2]} 43... Bxa2 {[%clk 0:01:09.6]} 44. Nb7 {[%clk 0:00:01.8]}
44... a4 {[%clk 0:01:09.6]} 45. Kf2 {[%clk 0:00:02.4]} 45... Ke6 {[%clk
0:01:08]} 46. Nc5+ {[%clk 0:00:02.4]} 46... Kd5 {[%clk 0:01:08.3]} 47. Nd3
{[%clk 0:00:03]} 47... c5 {[%clk 0:01:08.7]} 48. Ne5 {[%clk 0:00:03.3]} 48... c4
{[%clk 0:01:08.6]} 49. Ke2 {[%clk 0:00:04]} 49... Bb1 {[%clk 0:01:07.5]} 50. Kd2
{[%clk 0:00:04.5]} 50... b4 {[%clk 0:01:07.4]} 51. Kc1 {[%clk 0:00:05.2]} 51...
Be4 {[%clk 0:01:07.6]} 52. Nf7 {[%clk 0:00:06.1]} 52... a3 {[%clk 0:01:07.1]}
53. bxa3 {[%clk 0:00:06.1]} 53... bxa3 {[%clk 0:01:08]} 54. Nxh6 {[%clk
0:00:05.8]} 54... c3 {[%clk 0:01:08.1]} 55. Ng8 {[%clk 0:00:05.7]} 55... a2
{[%clk 0:01:08]} 56. Nf6+ {[%clk 0:00:06.6]} 56... Kc4 {[%clk 0:01:08.6]} 0-1

[Event "Late-Titled-Tuesday-Blitz-November-28-2023"]
[Site "Chess.com"]
[Date "2023.11.28"]
[Round "6"]
[White "grandemestregringo"]
[Black "FaustinoOro"]
[Result "0-1"]
[WhiteElo "2651"]
[BlackElo "2858"]
[TimeControl "180+1"]
[EndTime "15:04:29 PST"]
[Termination "FaustinoOro won on time"]

1. f4 {[%clk 0:03:00.9]} 1... d5 {[%clk 0:02:58.9]} 2. Nf3 {[%clk 0:03:00.9]}
2... Nf6 {[%clk 0:02:58.6]} 3. e3 {[%clk 0:02:56]} 3... Bf5 {[%clk 0:02:55.8]}
4. Nc3 {[%clk 0:02:52]} 4... h6 {[%clk 0:02:52.5]} 5. d3 {[%clk 0:02:51.9]} 5...
e6 {[%clk 0:02:52.4]} 6. h3 {[%clk 0:02:46.8]} 6... Bb4 {[%clk 0:02:46.8]} 7. g4
{[%clk 0:02:46.6]} 7... Bh7 {[%clk 0:02:45.9]} 8. Bg2 {[%clk 0:02:47]} 8... O-O
{[%clk 0:02:43.6]} 9. O-O {[%clk 0:02:47.2]} 9... Nbd7 {[%clk 0:02:38.2]} 10. a3
{[%clk 0:02:31.3]} 10... Bd6 {[%clk 0:02:36.6]} 11. Nb5 {[%clk 0:02:29.1]} 11...
Bc5 {[%clk 0:02:35.4]} 12. b4 {[%clk 0:02:27.2]} 12... Bb6 {[%clk 0:02:32.6]}
13. Nbd4 {[%clk 0:02:21.8]} 13... Qe7 {[%clk 0:02:25.2]} 14. Nb3 {[%clk
0:01:51.5]} 14... e5 {[%clk 0:02:19.3]} 15. f5 {[%clk 0:01:51.2]} 15... e4
{[%clk 0:02:09.8]} 16. Nfd4 {[%clk 0:01:50]} 16... c5 {[%clk 0:02:08.8]} 17.
bxc5 {[%clk 0:01:49.3]} 17... Nxc5 {[%clk 0:02:09.1]} 18. Nxc5 {[%clk 0:01:46]}
18... Bxc5 {[%clk 0:02:10]} 19. Bd2 {[%clk 0:01:43.2]} 19... Rfe8 {[%clk
0:02:04.2]} 20. Qb1 {[%clk 0:01:26.8]} 20... Bd6 {[%clk 0:02:00.8]} 21. Rf2
{[%clk 0:01:07.5]} 21... Rac8 {[%clk 0:01:37.2]} 22. Qb2 {[%clk 0:00:51.8]}
22... b6 {[%clk 0:01:24.2]} 23. a4 {[%clk 0:00:33.4]} 23... Nd7 {[%clk
0:01:20.2]} 24. a5 {[%clk 0:00:28]} 24... Nc5 {[%clk 0:01:16.6]} 25. Qb1 {[%clk
0:00:26.4]} 25... Qe5 {[%clk 0:01:08.8]} 26. Kf1 {[%clk 0:00:26.2]} 26... bxa5
{[%clk 0:01:03]} 27. Rxa5 {[%clk 0:00:24.3]} 27... Rb8 {[%clk 0:00:58.8]} 28.
Rb5 {[%clk 0:00:24.7]} 28... a6 {[%clk 0:00:50.2]} 29. Rb4 {[%clk 0:00:14.3]}
29... Rxb4 {[%clk 0:00:46]} 30. Bxb4 {[%clk 0:00:14.6]} 30... Qg3 {[%clk
0:00:43.9]} 31. Bxc5 {[%clk 0:00:14.2]} 31... Bxc5 {[%clk 0:00:43.2]} 32. Qc1
{[%clk 0:00:13.3]} 32... Kh8 {[%clk 0:00:35.8]} 33. dxe4 {[%clk 0:00:12.4]}
33... dxe4 {[%clk 0:00:35.9]} 34. Rf4 {[%clk 0:00:11.3]} 34... Bxd4 {[%clk
0:00:32.8]} 35. exd4 {[%clk 0:00:11.7]} 35... e3 {[%clk 0:00:32.5]} 36. Rf3
{[%clk 0:00:03]} 36... e2+ {[%clk 0:00:31.6]} 0-1

[Event "Late-Titled-Tuesday-Blitz-November-28-2023"]
[Site "Chess.com"]
[Date "2023.11.28"]
[Round "6"]
[White "Sulthankan"]
[Black "FontVella8"]
[Result "0-1"]
[WhiteElo "2385"]
[BlackElo "2584"]
[TimeControl "180+1"]
[EndTime "15:04:30 PST"]
[Termination "FontVella8 won on time"]

1. d4 {[%clk 0:03:00.9]} 1... Nf6 {[%clk 0:02:59.7]} 2. c4 {[%clk 0:03:00.9]}
2... e6 {[%clk 0:02:59.8]} 3. Nf3 {[%clk 0:03:01]} 3... d5 {[%clk 0:02:58.5]} 4.
g3 {[%clk 0:03:01.1]} 4... Bb4+ {[%clk 0:02:57.7]} 5. Bd2 {[%clk 0:03:00.5]}
5... Be7 {[%clk 0:02:58]} 6. Qc2 {[%clk 0:03:01]} 6... O-O {[%clk 0:02:54.6]} 7.
Bg2 {[%clk 0:03:00.6]} 7... c6 {[%clk 0:02:55.1]} 8. O-O {[%clk 0:03:01.1]} 8...
b6 {[%clk 0:02:55.4]} 9. b4 {[%clk 0:03:00.9]} 9... dxc4 {[%clk 0:02:52.4]} 10.
a4 {[%clk 0:02:45.3]} 10... Ba6 {[%clk 0:02:35]} 11. b5 {[%clk 0:02:22.5]} 11...
cxb5 {[%clk 0:02:24.6]} 12. Ne5 {[%clk 0:02:21.4]} 12... Nd5 {[%clk 0:02:20.9]}
13. axb5 {[%clk 0:02:19]} 13... Bxb5 {[%clk 0:02:17.6]} 14. Nc3 {[%clk
0:02:04.2]} 14... Bc6 {[%clk 0:02:04.1]} 15. Nxc4 {[%clk 0:01:53.2]} 15... Nb4
{[%clk 0:02:00]} 16. Qb3 {[%clk 0:01:30.9]} 16... Bxg2 {[%clk 0:01:59.8]} 17.
Kxg2 {[%clk 0:01:31.3]} 17... Qxd4 {[%clk 0:01:54.6]} 18. Be3 {[%clk 0:01:07]}
18... Qd7 {[%clk 0:01:52.8]} 19. Rfd1 {[%clk 0:01:04.8]} 19... Qb7+ {[%clk
0:01:51.9]} 20. Kg1 {[%clk 0:01:04.8]} 20... N8c6 {[%clk 0:01:46.3]} 21. Nb5
{[%clk 0:00:58.9]} 21... Rad8 {[%clk 0:01:33.3]} 22. Rdb1 {[%clk 0:00:47.1]}
22... Nd5 {[%clk 0:01:29.6]} 23. Bd2 {[%clk 0:00:47.6]} 23... Bf6 {[%clk
0:01:27.5]} 24. Ra2 {[%clk 0:00:42.7]} 24... Nd4 {[%clk 0:01:20.3]} 25. Nxd4
{[%clk 0:00:24.5]} 25... Bxd4 {[%clk 0:01:21.2]} 26. e4 {[%clk 0:00:16.9]} 26...
Nf6 {[%clk 0:01:15.2]} 27. e5 {[%clk 0:00:15]} 27... Ne4 {[%clk 0:01:09.2]} 28.
Be1 {[%clk 0:00:06.9]} 28... Ng5 {[%clk 0:01:04.5]} 29. Nd2 {[%clk 0:00:05.9]}
29... Nh3+ {[%clk 0:01:01.9]} 30. Kf1 {[%clk 0:00:05.7]} 30... Qh1+ {[%clk
0:00:57.6]} 31. Ke2 {[%clk 0:00:06]} 31... Ng1+ {[%clk 0:00:43.4]} 32. Kd1
{[%clk 0:00:03.5]} 32... Qxh2 {[%clk 0:00:43.9]} 33. Kc2 {[%clk 0:00:02.6]}
33... Rc8+ {[%clk 0:00:34]} 34. Kd1 {[%clk 0:00:02.5]} 34... Rfd8 {[%clk
0:00:33.3]} 35. Rxa7 {[%clk 0:00:01.7]} 35... Qh5+ {[%clk 0:00:31]} 36. f3
{[%clk 0:00:01.3]} 36... Bc3 {[%clk 0:00:26.8]} 0-1

[Event "Late-Titled-Tuesday-Blitz-November-28-2023"]
[Site "Chess.com"]
[Date "2023.11.28"]
[Round "6"]
[White "szachmistrz2500"]
[Black "PushingpawnsNYC"]
[Result "1-0"]
[WhiteElo "2475"]
[BlackElo "2319"]
[TimeControl "180+1"]
[EndTime "15:04:32 PST"]
[Termination "szachmistrz2500 won by resignation"]

1. Nf3 {[%clk 0:03:00.9]} 1... g6 {[%clk 0:02:58.2]} 2. g3 {[%clk 0:02:59.7]}
2... Bg7 {[%clk 0:02:58.7]} 3. Bg2 {[%clk 0:02:57.6]} 3... Nf6 {[%clk
0:02:55.8]} 4. O-O {[%clk 0:02:56.8]} 4... O-O {[%clk 0:02:56.5]} 5. d3 {[%clk
0:02:56.6]} 5... c5 {[%clk 0:02:54.7]} 6. e4 {[%clk 0:02:56.2]} 6... Nc6 {[%clk
0:02:55.1]} 7. Re1 {[%clk 0:02:54.9]} 7... d6 {[%clk 0:02:55.1]} 8. c3 {[%clk
0:02:54.9]} 8... Bd7 {[%clk 0:02:51.3]} 9. d4 {[%clk 0:02:52.8]} 9... e5 {[%clk
0:02:45.1]} 10. dxc5 {[%clk 0:02:46.6]} 10... dxc5 {[%clk 0:02:44.5]} 11. Na3
{[%clk 0:02:44.9]} 11... Be6 {[%clk 0:02:37.6]} 12. Bg5 {[%clk 0:02:43.8]} 12...
h6 {[%clk 0:02:32.8]} 13. Bxf6 {[%clk 0:02:43.8]} 13... Bxf6 {[%clk 0:02:29.3]}
14. Qe2 {[%clk 0:02:43.2]} 14... a6 {[%clk 0:02:26.7]} 15. Nc4 {[%clk
0:02:39.8]} 15... Qc7 {[%clk 0:02:26.3]} 16. Ne3 {[%clk 0:02:30]} 16... Rad8
{[%clk 0:02:22]} 17. Red1 {[%clk 0:02:30]} 17... Ne7 {[%clk 0:02:13.7]} 18. Qc2
{[%clk 0:02:22.1]} 18... b5 {[%clk 0:02:08.2]} 19. a4 {[%clk 0:02:21.6]} 19...
Bg7 {[%clk 0:02:03.5]} 20. Bf1 {[%clk 0:02:21.1]} 20... c4 {[%clk 0:02:01.1]}
21. axb5 {[%clk 0:02:20.2]} 21... axb5 {[%clk 0:02:02]} 22. h4 {[%clk
0:02:16.2]} 22... Qc6 {[%clk 0:01:59.1]} 23. Kh2 {[%clk 0:02:15.4]} 23... f5
{[%clk 0:01:55.5]} 24. Rxd8 {[%clk 0:02:02]} 24... Rxd8 {[%clk 0:01:54.9]} 25.
Nd2 {[%clk 0:02:01.4]} 25... f4 {[%clk 0:01:46.1]} 26. Ng2 {[%clk 0:01:54.6]}
26... g5 {[%clk 0:01:40.2]} 27. hxg5 {[%clk 0:01:50.6]} 27... hxg5 {[%clk
0:01:36.6]} 28. Nf3 {[%clk 0:01:51.1]} 28... Bf6 {[%clk 0:01:35]} 29. Rd1 {[%clk
0:01:42.7]} 29... Rxd1 {[%clk 0:01:31.2]} 30. Qxd1 {[%clk 0:01:42.6]} 30... Qxe4
{[%clk 0:01:30.9]} 31. Qd6 {[%clk 0:01:41.9]} 31... Kf7 {[%clk 0:01:28.6]} 32.
Nd2 {[%clk 0:01:41.5]} 32... Qh7+ {[%clk 0:01:24.8]} 33. Kg1 {[%clk 0:01:40.9]}
33... Qc2 {[%clk 0:01:04.9]} 34. Be2 {[%clk 0:01:34.9]} 34... Nf5 {[%clk
0:01:00.2]} 35. Bh5+ {[%clk 0:01:33.2]} 35... Kg7 {[%clk 0:00:54.9]} 36. Qxe6
{[%clk 0:01:33.2]} 36... Nh6 {[%clk 0:00:45.6]} 37. Nf3 {[%clk 0:01:17.9]} 37...
Qxb2 {[%clk 0:00:32.8]} 38. Nxe5 {[%clk 0:01:17.2]} 38... Qxc3 {[%clk
0:00:30.5]} 39. Qd7+ {[%clk 0:01:15.3]} 39... Kg8 {[%clk 0:00:29]} 40. Bf7+
{[%clk 0:01:11.3]} 40... Kh7 {[%clk 0:00:20.7]} 41. Bxc4+ {[%clk 0:01:07.7]}
41... Bg7 {[%clk 0:00:18.2]} 42. Bd3+ {[%clk 0:01:07]} 42... Kh8 {[%clk
0:00:17.2]} 43. Ng6+ {[%clk 0:01:05.5]} 43... Kg8 {[%clk 0:00:17.5]} 44. Qe6+
{[%clk 0:01:05.7]} 44... Kh7 {[%clk 0:00:17]} 45. N6xf4+ {[%clk 0:01:02.6]}
45... Kh8 {[%clk 0:00:17]} 46. Qe8+ {[%clk 0:01:01.1]} 46... Ng8 {[%clk
0:00:15.8]} 47. Ng6+ {[%clk 0:00:58.9]} 47... Kh7 {[%clk 0:00:16.2]} 48. Nf8+
{[%clk 0:00:58.6]} 48... Kh8 {[%clk 0:00:15.8]} 49. Qg6 {[%clk 0:00:53.1]} 49...
Nf6 {[%clk 0:00:11.1]} 50. Ne6 {[%clk 0:00:49.3]} 50... Qe1+ {[%clk 0:00:08.8]}
51. Nxe1 {[%clk 0:00:48.8]} 1-0